[Event "Titled Tuesday Blitz May 23 Early 2023"]
[White "Ruge, Edison"]
[Black "Sliwicki, Damian"]
[WhiteFideId "4401000"]
[BlackFideId "1127128"]
[WhiteElo "2175"]
[BlackElo "2030"]
[Result "0-1"]
[Round "05"]
[TimeControl "180+2"]
[Date "2023.05.23"]
[WhiteClock "0:00:00"]
[BlackClock "0:00:24"]

1. e4 {[%clk 0:02:57]}  c5 {[%clk 0:02:57]} 2. Nf3 {[%clk 0:02:57]}  g6 {[%clk 0:02:57]} 3. d3 {[%clk 0:02:58]}  Nc6 {[%clk 0:02:57]} 4. Nbd2 {[%clk 0:02:58]}  Bg7 {[%clk 0:02:57]} 5. g3 {[%clk 0:02:58]}  e5 {[%clk 0:02:57]} 6. Bg2 {[%clk 0:02:58]}  h5 {[%clk 0:02:58]} 7. h4 {[%clk 0:02:58]}  d6 {[%clk 0:02:57]} 8. O-O {[%clk 0:02:59]}  Bg4 {[%clk 0:02:56]} 9. c3 {[%clk 0:02:58]}  g5 {[%clk 0:02:52]} 10. Qc2 {[%clk 0:02:53]}  gxh4 {[%clk 0:02:47]} 11. Nxh4 {[%clk 0:02:53]}  Bf6 {[%clk 0:02:47]} 12. Ndf3 {[%clk 0:02:49]}  Bxf3 {[%clk 0:02:40]} 13. Nxf3 {[%clk 0:02:46]}  h4 {[%clk 0:02:41]} 14. gxh4 {[%clk 0:02:21]}  Bxh4 {[%clk 0:02:42]} 15. Qb3 {[%clk 0:02:20]}  Qd7 {[%clk 0:02:28]} 16. d4 {[%clk 0:01:30]}  cxd4 {[%clk 0:02:19]} 17. cxd4 {[%clk 0:01:28]}  exd4 {[%clk 0:01:49]} 18. Bf4 {[%clk 0:01:11]}  Nge7 {[%clk 0:01:45]} 19. e5 {[%clk 0:00:59]}  Ng6 {[%clk 0:01:38]} 20. Bh2 {[%clk 0:00:30]}  dxe5 {[%clk 0:01:24]} 21. Rfe1 {[%clk 0:00:23]}  f6 {[%clk 0:01:20]} 22. Rac1 {[%clk 0:00:16]}  O-O-O {[%clk 0:01:12]} 23. Re4 {[%clk 0:00:15]}  Kb8 {[%clk 0:01:09]} 24. Re2 {[%clk 0:00:12]}  Rdg8 {[%clk 0:01:02]} 25. Rec2 {[%clk 0:00:11]}  Nf4 {[%clk 0:00:47]} 26. Bxf4 {[%clk 0:00:10]}  Qg4 {[%clk 0:00:43]} 27. Ne1 {[%clk 0:00:08]}  exf4 {[%clk 0:00:34]} 28. Rxc6 {[%clk 0:00:07]}  Bxf2+ {[%clk 0:00:35]} 29. Kxf2 {[%clk 0:00:07]}  Qg3+ {[%clk 0:00:34]} 30. Kf1 {[%clk 0:00:07]}  Qxb3 {[%clk 0:00:31]} 31. axb3 {[%clk 0:00:06]}  bxc6 {[%clk 0:00:31]} 32. Rxc6 {[%clk 0:00:07]}  Rc8 {[%clk 0:00:26]} 33. Rxf6 {[%clk 0:00:07]}  Rc1 {[%clk 0:00:26]} 34. Rxf4 {[%clk 0:00:06]}  Re8 {[%clk 0:00:26]} 35. Rxd4 {[%clk 0:00:01]}  Rcxe1+ {[%clk 0:00:24]} 36. Kf2 {[%clk 0:00:00]}  R1e2+ {[%clk 0:00:24]} 0-1


[Site "https://www.chess.com"]

[Event "Titled Tuesday Blitz May 23 Early 2023"]
[White "Begmuratov, Alisher"]
[Black "Jaivardhan Raj"]
[WhiteFideId "14203367"]
[BlackFideId "25744437"]
[WhiteElo "2387"]
[BlackElo "1772"]
[Result "1-0"]
[Round "05"]
[TimeControl "180+2"]
[Date "2023.05.23"]
[WhiteClock "0:01:29"]
[BlackClock "0:00:03"]

1. c4 {[%clk 0:03:00]}  c5 {[%clk 0:02:57]} 2. g3 {[%clk 0:03:01]}  g6 {[%clk 0:02:56]} 3. Bg2 {[%clk 0:03:01]}  Bg7 {[%clk 0:02:57]} 4. Nf3 {[%clk 0:03:01]}  Nc6 {[%clk 0:02:56]} 5. O-O {[%clk 0:03:01]}  Nf6 {[%clk 0:02:57]} 6. Nc3 {[%clk 0:03:01]}  O-O {[%clk 0:02:57]} 7. b3 {[%clk 0:03:02]}  b6 {[%clk 0:02:56]} 8. Bb2 {[%clk 0:03:01]}  Bb7 {[%clk 0:02:57]} 9. d4 {[%clk 0:03:01]}  d6 {[%clk 0:02:54]} 10. d5 {[%clk 0:03:00]}  Nb8 {[%clk 0:02:48]} 11. Qc2 {[%clk 0:03:00]}  Nfd7 {[%clk 0:02:39]} 12. e4 {[%clk 0:03:00]}  Ne5 {[%clk 0:02:37]} 13. Nxe5 {[%clk 0:02:55]}  Bxe5 {[%clk 0:02:36]} 14. Ne2 {[%clk 0:02:55]}  Nd7 {[%clk 0:02:32]} 15. f4 {[%clk 0:02:54]}  Bf6 {[%clk 0:02:26]} 16. Bxf6 {[%clk 0:02:50]}  Nxf6 {[%clk 0:02:25]} 17. h3 {[%clk 0:02:49]}  Nd7 {[%clk 0:02:17]} 18. Nc3 {[%clk 0:02:47]}  a6 {[%clk 0:02:14]} 19. a4 {[%clk 0:02:46]}  e6 {[%clk 0:02:09]} 20. Rae1 {[%clk 0:02:41]}  exd5 {[%clk 0:02:04]} 21. cxd5 {[%clk 0:02:35]}  Re8 {[%clk 0:01:57]} 22. Kh2 {[%clk 0:02:32]}  Rc8 {[%clk 0:01:56]} 23. Rf2 {[%clk 0:02:31]}  c4 {[%clk 0:01:55]} 24. b4 {[%clk 0:02:30]}  a5 {[%clk 0:01:54]} 25. Nb5 {[%clk 0:02:19]}  Qe7 {[%clk 0:01:42]} 26. bxa5 {[%clk 0:02:14]}  bxa5 {[%clk 0:01:36]} 27. e5 {[%clk 0:02:14]}  Nc5 {[%clk 0:01:00]} 28. Nxd6 {[%clk 0:02:12]}  Nd3 {[%clk 0:00:56]} 29. Rb1 {[%clk 0:02:10]}  Ba6 {[%clk 0:00:41]} 30. Nxc8 {[%clk 0:02:08]}  Rxc8 {[%clk 0:00:40]} 31. d6 {[%clk 0:02:08]}  Qd7 {[%clk 0:00:40]} 32. Rd2 {[%clk 0:02:04]}  Nb4 {[%clk 0:00:32]} 33. Qc3 {[%clk 0:02:03]}  Qxa4 {[%clk 0:00:25]} 34. d7 {[%clk 0:01:58]}  Rd8 {[%clk 0:00:25]} 35. e6 {[%clk 0:01:47]}  fxe6 {[%clk 0:00:13]} 36. Qf6 {[%clk 0:01:41]}  Rxd7 {[%clk 0:00:12]} 37. Qxe6+ {[%clk 0:01:38]}  Rf7 {[%clk 0:00:12]} 38. Rxb4 {[%clk 0:01:30]}  axb4 {[%clk 0:00:03]} 39. Bd5 {[%clk 0:01:29]} 1-0


[Site "https://www.chess.com"]

[Event "Titled Tuesday Blitz May 23 Early 2023"]
[White "Mazurkiewicz, Michal"]
[Black "Erzhanov, Arman"]
[WhiteFideId "1124943"]
[BlackFideId "4138821"]
[WhiteElo "2054"]
[BlackElo "2138"]
[Result "0-1"]
[Round "05"]
[TimeControl "180+2"]
[Date "2023.05.23"]
[WhiteClock "0:00:00"]
[BlackClock "0:01:08"]

1. e4 {[%clk 0:02:59]}  d6 {[%clk 0:02:30]} 2. d4 {[%clk 0:02:59]}  Nf6 {[%clk 0:02:29]} 3. Nc3 {[%clk 0:02:59]}  c6 {[%clk 0:02:29]} 4. f4 {[%clk 0:02:59]}  d5 {[%clk 0:02:28]} 5. e5 {[%clk 0:02:58]}  Ng8 {[%clk 0:02:29]} 6. Nf3 {[%clk 0:02:58]}  h5 {[%clk 0:02:28]} 7. Bd3 {[%clk 0:02:55]}  Nh6 {[%clk 0:02:27]} 8. Ne2 {[%clk 0:02:55]}  Bf5 {[%clk 0:02:26]} 9. Be3 {[%clk 0:02:52]}  e6 {[%clk 0:02:25]} 10. O-O {[%clk 0:02:47]}  g6 {[%clk 0:02:24]} 11. Bf2 {[%clk 0:02:37]}  Be7 {[%clk 0:02:24]} 12. h3 {[%clk 0:02:32]}  h4 {[%clk 0:02:23]} 13. Qd2 {[%clk 0:02:19]}  Nd7 {[%clk 0:02:23]} 14. c4 {[%clk 0:02:15]}  Bxd3 {[%clk 0:02:21]} 15. Qxd3 {[%clk 0:02:16]}  dxc4 {[%clk 0:02:21]} 16. Qxc4 {[%clk 0:02:16]}  Nb6 {[%clk 0:02:19]} 17. Qb3 {[%clk 0:02:16]}  Nf5 {[%clk 0:02:19]} 18. Nc3 {[%clk 0:02:07]}  Kf8 {[%clk 0:02:10]} 19. a4 {[%clk 0:02:06]}  Qc7 {[%clk 0:02:08]} 20. Rac1 {[%clk 0:01:56]}  Rd8 {[%clk 0:02:04]} 21. d5 {[%clk 0:00:45]}  exd5 {[%clk 0:01:50]} 22. Rfd1 {[%clk 0:00:26]}  Kg7 {[%clk 0:01:45]} 23. Nxd5 {[%clk 0:00:20]}  Nxd5 {[%clk 0:01:44]} 24. Rxd5 {[%clk 0:00:20]}  Rxd5 {[%clk 0:01:44]} 25. Qxd5 {[%clk 0:00:21]}  Rd8 {[%clk 0:01:44]} 26. Qe4 {[%clk 0:00:21]}  Qa5 {[%clk 0:01:40]} 27. e6 {[%clk 0:00:19]}  Qd5 {[%clk 0:01:32]} 28. Qxd5 {[%clk 0:00:19]}  Rxd5 {[%clk 0:01:33]} 29. exf7 {[%clk 0:00:19]}  Kxf7 {[%clk 0:01:33]} 30. Ne5+ {[%clk 0:00:19]}  Kg7 {[%clk 0:01:31]} 31. Re1 {[%clk 0:00:15]}  Bb4 {[%clk 0:01:30]} 32. Re2 {[%clk 0:00:15]}  Nd4 {[%clk 0:01:24]} 33. Re4 {[%clk 0:00:12]}  Bc5 {[%clk 0:01:21]} 34. Nd3 {[%clk 0:00:12]}  Bb6 {[%clk 0:01:19]} 35. a5 {[%clk 0:00:12]}  Bxa5 {[%clk 0:01:17]} 36. Rxd4 {[%clk 0:00:11]}  Rb5 {[%clk 0:01:13]} 37. Rd7+ {[%clk 0:00:11]}  Kf6 {[%clk 0:01:13]} 38. Bd4+ {[%clk 0:00:11]}  Ke6 {[%clk 0:01:14]} 39. Rg7 {[%clk 0:00:10]}  Rd5 {[%clk 0:01:13]} 40. Rxg6+ {[%clk 0:00:10]}  Kf5 {[%clk 0:01:11]} 41. Rg5+ {[%clk 0:00:08]}  Ke4 {[%clk 0:01:11]} 42. Rxd5 {[%clk 0:00:08]}  cxd5 {[%clk 0:01:12]} 43. Nc5+ {[%clk 0:00:02]}  Kxd4 {[%clk 0:01:12]} 44. Nxb7 {[%clk 0:00:03]}  Bb6 {[%clk 0:01:12]} 45. Nd6 {[%clk 0:00:03]}  Bc5 {[%clk 0:01:07]} 46. Nf5+ {[%clk 0:00:02]}  Ke4+ {[%clk 0:01:07]} 47. Kf1 {[%clk 0:00:02]}  Kxf5 {[%clk 0:01:07]} 48. Ke2 {[%clk 0:00:02]}  Kxf4 {[%clk 0:01:08]} 49. Kd3 {[%clk 0:00:02]}  Kg3 {[%clk 0:01:08]} 50. b4 {[%clk 0:00:00]}  Bxb4 {[%clk 0:01:08]} 0-1


[Site "https://www.chess.com"]

[Event "Titled Tuesday Blitz May 23 Early 2023"]
[White "Shuvalov, Evgenij"]
[Black "Dwilewicz, Katarzyna"]
[WhiteFideId "4187237"]
[BlackFideId "1148486"]
[WhiteElo "2080"]
[BlackElo "2065"]
[Result "1-0"]
[Round "05"]
[TimeControl "180+2"]
[Date "2023.05.23"]
[WhiteClock "0:00:47"]
[BlackClock "0:00:16"]

1. d4 {[%clk 0:02:52]}  Nf6 {[%clk 0:02:58]} 2. c4 {[%clk 0:02:51]}  g6 {[%clk 0:02:58]} 3. Nc3 {[%clk 0:02:51]}  Bg7 {[%clk 0:02:58]} 4. e4 {[%clk 0:02:51]}  O-O {[%clk 0:02:59]} 5. Nf3 {[%clk 0:02:51]}  d6 {[%clk 0:02:59]} 6. Be2 {[%clk 0:02:51]}  Nbd7 {[%clk 0:02:59]} 7. O-O {[%clk 0:02:51]}  e5 {[%clk 0:03:00]} 8. Be3 {[%clk 0:02:50]}  Re8 {[%clk 0:02:58]} 9. d5 {[%clk 0:02:49]}  Nc5 {[%clk 0:02:52]} 10. Nd2 {[%clk 0:02:47]}  a5 {[%clk 0:02:52]} 11. a3 {[%clk 0:02:46]}  a4 {[%clk 0:02:47]} 12. Bxc5 {[%clk 0:02:45]}  dxc5 {[%clk 0:02:47]} 13. Nxa4 {[%clk 0:02:45]}  b6 {[%clk 0:02:40]} 14. b4 {[%clk 0:02:40]}  cxb4 {[%clk 0:02:38]} 15. axb4 {[%clk 0:02:39]}  Bd7 {[%clk 0:02:36]} 16. Nc3 {[%clk 0:02:38]}  Qe7 {[%clk 0:02:33]} 17. Qb3 {[%clk 0:02:34]}  Nh5 {[%clk 0:02:32]} 18. Bxh5 {[%clk 0:02:31]}  gxh5 {[%clk 0:02:31]} 19. h3 {[%clk 0:02:16]}  Kh8 {[%clk 0:02:31]} 20. Nf3 {[%clk 0:02:15]}  f5 {[%clk 0:02:26]} 21. Rxa8 {[%clk 0:02:05]}  Rxa8 {[%clk 0:02:25]} 22. Re1 {[%clk 0:02:05]}  f4 {[%clk 0:02:24]} 23. Qb2 {[%clk 0:01:55]}  Rg8 {[%clk 0:02:22]} 24. Kh2 {[%clk 0:01:46]}  Bf6 {[%clk 0:02:12]} 25. Rg1 {[%clk 0:01:42]}  Qg7 {[%clk 0:02:06]} 26. c5 {[%clk 0:01:33]}  Bg4 {[%clk 0:02:06]} 27. Qc1 {[%clk 0:01:24]}  Be7 {[%clk 0:01:46]} 28. d6 {[%clk 0:01:17]}  cxd6 {[%clk 0:01:44]} 29. c6 {[%clk 0:01:17]}  Be6 {[%clk 0:01:01]} 30. b5 {[%clk 0:01:06]}  Bf6 {[%clk 0:00:57]} 31. Qd1 {[%clk 0:01:02]}  Qe7 {[%clk 0:00:45]} 32. Nd5 {[%clk 0:01:00]}  Bxd5 {[%clk 0:00:39]} 33. Qxd5 {[%clk 0:01:01]}  Qc7 {[%clk 0:00:29]} 34. Qe6 {[%clk 0:00:54]}  Kg7 {[%clk 0:00:28]} 35. g3 {[%clk 0:00:50]}  Qf7 {[%clk 0:00:19]} 36. gxf4+ {[%clk 0:00:49]}  Kf8 {[%clk 0:00:18]} 37. Rxg8+ {[%clk 0:00:47]}  Qxg8 {[%clk 0:00:17]} 38. Qxg8+ {[%clk 0:00:47]}  Kxg8 {[%clk 0:00:16]} 39. c7 {[%clk 0:00:47]} 1-0


[Site "https://www.chess.com"]

[Event "Titled Tuesday Blitz May 23 Early 2023"]
[White "Martic, Ivan"]
[Black "Vargas, Gabriela"]
[WhiteFideId "929301"]
[BlackFideId "3700860"]
[WhiteElo "2360"]
[BlackElo "2057"]
[Result "1/2-1/2"]
[Round "05"]
[TimeControl "180+2"]
[Date "2023.05.23"]
[WhiteClock "0:00:17"]
[BlackClock "0:00:16"]

1. e4 {[%clk 0:03:00]}  e6 {[%clk 0:02:59]} 2. d4 {[%clk 0:02:58]}  d5 {[%clk 0:02:59]} 3. e5 {[%clk 0:02:58]}  c5 {[%clk 0:02:59]} 4. c3 {[%clk 0:02:58]}  Nc6 {[%clk 0:02:59]} 5. Nf3 {[%clk 0:02:59]}  Qb6 {[%clk 0:02:59]} 6. a3 {[%clk 0:02:58]}  Nh6 {[%clk 0:02:54]} 7. b4 {[%clk 0:02:58]}  cxd4 {[%clk 0:02:54]} 8. cxd4 {[%clk 0:02:59]}  Nf5 {[%clk 0:02:55]} 9. Be3 {[%clk 0:02:57]}  Be7 {[%clk 0:02:53]} 10. Bd3 {[%clk 0:02:51]}  Nxe3 {[%clk 0:02:52]} 11. fxe3 {[%clk 0:02:52]}  Bd7 {[%clk 0:02:53]} 12. O-O {[%clk 0:02:50]}  Rc8 {[%clk 0:02:52]} 13. Nbd2 {[%clk 0:02:42]}  Nb8 {[%clk 0:02:50]} 14. Kh1 {[%clk 0:02:37]}  Rc3 {[%clk 0:02:47]} 15. Qe2 {[%clk 0:02:33]}  O-O {[%clk 0:02:40]} 16. e4 {[%clk 0:02:12]}  Rxd3 {[%clk 0:02:28]} 17. Qxd3 {[%clk 0:02:10]}  Bb5 {[%clk 0:02:28]} 18. Qe3 {[%clk 0:02:06]}  Bxf1 {[%clk 0:02:28]} 19. Rxf1 {[%clk 0:02:05]}  dxe4 {[%clk 0:01:53]} 20. Nxe4 {[%clk 0:02:06]}  Nc6 {[%clk 0:01:43]} 21. h3 {[%clk 0:01:58]}  Rd8 {[%clk 0:01:42]} 22. Nc5 {[%clk 0:01:51]}  Bxc5 {[%clk 0:01:36]} 23. dxc5 {[%clk 0:01:48]}  Qb5 {[%clk 0:01:35]} 24. Qf2 {[%clk 0:01:42]}  h6 {[%clk 0:01:31]} 25. Kh2 {[%clk 0:01:30]}  Rd5 {[%clk 0:01:26]} 26. Re1 {[%clk 0:01:30]}  Qd3 {[%clk 0:01:19]} 27. Re3 {[%clk 0:01:23]}  Qf5 {[%clk 0:01:06]} 28. Qg3 {[%clk 0:01:22]}  Rd3 {[%clk 0:00:54]} 29. Rxd3 {[%clk 0:01:16]}  Qxd3 {[%clk 0:00:55]} 30. b5 {[%clk 0:01:17]}  Qxb5 {[%clk 0:00:52]} 31. Qf2 {[%clk 0:01:16]}  Qb3 {[%clk 0:00:48]} 32. Qd2 {[%clk 0:01:09]}  Qxa3 {[%clk 0:00:45]} 33. Qd7 {[%clk 0:01:09]}  Qxc5 {[%clk 0:00:42]} 34. Qxb7 {[%clk 0:01:09]}  a5 {[%clk 0:00:37]} 35. h4 {[%clk 0:01:06]}  a4 {[%clk 0:00:31]} 36. Qa8+ {[%clk 0:01:03]}  Kh7 {[%clk 0:00:31]} 37. Qxa4 {[%clk 0:01:04]}  Nxe5 {[%clk 0:00:26]} 38. Qe4+ {[%clk 0:01:03]}  Ng6 {[%clk 0:00:27]} 39. g4 {[%clk 0:00:54]}  Qd6+ {[%clk 0:00:24]} 40. Kh1 {[%clk 0:00:51]}  Qf4 {[%clk 0:00:24]} 41. Qxf4 {[%clk 0:00:42]}  Nxf4 {[%clk 0:00:25]} 42. h5 {[%clk 0:00:42]}  g6 {[%clk 0:00:24]} 43. hxg6+ {[%clk 0:00:40]}  fxg6 {[%clk 0:00:25]} 44. Kh2 {[%clk 0:00:39]}  Kg7 {[%clk 0:00:25]} 45. Kg3 {[%clk 0:00:39]}  Nd3 {[%clk 0:00:25]} 46. Nd2 {[%clk 0:00:37]}  Kf6 {[%clk 0:00:25]} 47. Kf3 {[%clk 0:00:35]}  Ne5+ {[%clk 0:00:25]} 48. Kf4 {[%clk 0:00:34]}  g5+ {[%clk 0:00:24]} 49. Kg3 {[%clk 0:00:33]}  Nd3 {[%clk 0:00:22]} 50. Nc4 {[%clk 0:00:32]}  e5 {[%clk 0:00:22]} 51. Nd6 {[%clk 0:00:30]}  Nc5 {[%clk 0:00:20]} 52. Kf3 {[%clk 0:00:29]}  Ke6 {[%clk 0:00:19]} 53. Nf5 {[%clk 0:00:29]}  e4+ {[%clk 0:00:18]} 54. Ke3 {[%clk 0:00:29]}  Ke5 {[%clk 0:00:18]} 55. Nxh6 {[%clk 0:00:28]}  Ne6 {[%clk 0:00:18]} 56. Nf7+ {[%clk 0:00:23]}  Kd5 {[%clk 0:00:18]} 57. Nh6 {[%clk 0:00:20]}  Nd4 {[%clk 0:00:13]} 58. Nf7 {[%clk 0:00:20]}  Ne6 {[%clk 0:00:12]} 59. Nh6 {[%clk 0:00:19]}  Nd4 {[%clk 0:00:11]} 60. Nf7 {[%clk 0:00:19]}  Nc2+ {[%clk 0:00:10]} 61. Kd2 {[%clk 0:00:19]}  Nd4 {[%clk 0:00:10]} 62. Nxg5 {[%clk 0:00:18]}  Nf3+ {[%clk 0:00:10]} 63. Nxf3 {[%clk 0:00:16]}  exf3 {[%clk 0:00:11]} 64. Ke3 {[%clk 0:00:16]}  Ke5 {[%clk 0:00:11]} 65. Kxf3 {[%clk 0:00:16]}  Ke6 {[%clk 0:00:12]} 66. Ke4 {[%clk 0:00:13]}  Kf6 {[%clk 0:00:11]} 67. Kf4 {[%clk 0:00:14]}  Kg6 {[%clk 0:00:11]} 68. g5 {[%clk 0:00:14]}  Kg7 {[%clk 0:00:11]} 69. Kf5 {[%clk 0:00:14]}  Kf7 {[%clk 0:00:12]} 70. Ke4 {[%clk 0:00:14]}  Kg6 {[%clk 0:00:12]} 71. Kf4 {[%clk 0:00:14]}  Kg7 {[%clk 0:00:12]} 72. Kg3 {[%clk 0:00:15]}  Kg6 {[%clk 0:00:13]} 73. Kh4 {[%clk 0:00:15]}  Kg7 {[%clk 0:00:13]} 74. Kh5 {[%clk 0:00:16]}  Kh7 {[%clk 0:00:14]} 75. g6+ {[%clk 0:00:16]}  Kg7 {[%clk 0:00:14]} 76. Kg5 {[%clk 0:00:16]}  Kg8 {[%clk 0:00:15]} 77. Kg4 {[%clk 0:00:17]}  Kg7 {[%clk 0:00:15]} 78. Kf5 {[%clk 0:00:18]}  Kg8 {[%clk 0:00:15]} 79. Kf6 {[%clk 0:00:17]}  Kf8 {[%clk 0:00:15]} 80. Ke5 {[%clk 0:00:17]}  Kg7 {[%clk 0:00:16]} 81. Kf5 {[%clk 0:00:17]}  Kg8 {[%clk 0:00:16]} 82. g7 {[%clk 0:00:17]}  Kxg7 {[%clk 0:00:16]} 1/2-1/2


[Site "https://www.chess.com"]

[Event "Titled Tuesday Blitz May 23 Early 2023"]
[White "Rios Escobar, Adan"]
[Black "Kopczynski, Michal"]
[WhiteFideId "3403645"]
[BlackFideId "1124200"]
[WhiteElo "2455"]
[BlackElo "2212"]
[Result "0-1"]
[Round "05"]
[TimeControl "180+2"]
[Date "2023.05.23"]
[WhiteClock "0:00:08"]
[BlackClock "0:00:12"]

1. d4 {[%clk 0:02:52]}  Nf6 {[%clk 0:02:59]} 2. g3 {[%clk 0:02:52]}  g6 {[%clk 0:02:59]} 3. Bg2 {[%clk 0:02:53]}  Bg7 {[%clk 0:03:00]} 4. e4 {[%clk 0:02:53]}  d6 {[%clk 0:03:00]} 5. Ne2 {[%clk 0:02:54]}  O-O {[%clk 0:03:00]} 6. O-O {[%clk 0:02:54]}  e5 {[%clk 0:03:00]} 7. Nbc3 {[%clk 0:02:55]}  Nc6 {[%clk 0:02:58]} 8. dxe5 {[%clk 0:02:54]}  Nxe5 {[%clk 0:02:55]} 9. f4 {[%clk 0:02:53]}  Nc6 {[%clk 0:02:53]} 10. h3 {[%clk 0:02:53]}  Be6 {[%clk 0:02:51]} 11. a4 {[%clk 0:02:49]}  Qc8 {[%clk 0:02:50]} 12. Kh2 {[%clk 0:02:48]}  Ne8 {[%clk 0:02:44]} 13. Be3 {[%clk 0:02:45]}  f5 {[%clk 0:02:44]} 14. Nd4 {[%clk 0:02:44]}  Nxd4 {[%clk 0:02:39]} 15. Bxd4 {[%clk 0:02:45]}  Nf6 {[%clk 0:02:32]} 16. e5 {[%clk 0:02:23]}  dxe5 {[%clk 0:02:31]} 17. Bxe5 {[%clk 0:02:24]}  c6 {[%clk 0:02:26]} 18. Qd6 {[%clk 0:02:13]}  Rd8 {[%clk 0:02:21]} 19. Qe7 {[%clk 0:02:08]}  Re8 {[%clk 0:02:15]} 20. Qb4 {[%clk 0:02:01]}  a5 {[%clk 0:01:41]} 21. Qd6 {[%clk 0:01:37]}  Rd8 {[%clk 0:01:39]} 22. Qe7 {[%clk 0:01:38]}  Re8 {[%clk 0:01:39]} 23. Qd6 {[%clk 0:01:31]}  Rd8 {[%clk 0:01:37]} 24. Qe7 {[%clk 0:01:31]}  Re8 {[%clk 0:01:37]} 25. Qa3 {[%clk 0:01:27]}  Nd5 {[%clk 0:01:20]} 26. Bxg7 {[%clk 0:01:26]}  Kxg7 {[%clk 0:01:20]} 27. Rae1 {[%clk 0:01:23]}  Nb4 {[%clk 0:01:15]} 28. Ne2 {[%clk 0:01:16]}  Qd8 {[%clk 0:01:03]} 29. Qc3+ {[%clk 0:01:12]}  Qf6 {[%clk 0:01:02]} 30. Nd4 {[%clk 0:01:10]}  Bf7 {[%clk 0:00:56]} 31. Qc5 {[%clk 0:00:59]}  Rxe1 {[%clk 0:00:48]} 32. Rxe1 {[%clk 0:00:58]}  Rd8 {[%clk 0:00:48]} 33. Re5 {[%clk 0:00:47]}  Qd6 {[%clk 0:00:42]} 34. c3 {[%clk 0:00:25]}  Qxc5 {[%clk 0:00:37]} 35. Rxc5 {[%clk 0:00:23]}  Nd3 {[%clk 0:00:36]} 36. Rxa5 {[%clk 0:00:21]}  Nxb2 {[%clk 0:00:37]} 37. Ra7 {[%clk 0:00:21]}  c5 {[%clk 0:00:16]} 38. Rxb7 {[%clk 0:00:12]}  cxd4 {[%clk 0:00:15]} 39. Rxb2 {[%clk 0:00:07]}  dxc3 {[%clk 0:00:15]} 40. Rc2 {[%clk 0:00:08]}  Rd2 {[%clk 0:00:15]} 41. Rxd2 {[%clk 0:00:02]}  cxd2 {[%clk 0:00:16]} 42. Bf3 {[%clk 0:00:02]}  Bb3 {[%clk 0:00:16]} 43. a5 {[%clk 0:00:03]}  d1=Q {[%clk 0:00:15]} 44. Bxd1 {[%clk 0:00:03]}  Bxd1 {[%clk 0:00:16]} 45. a6 {[%clk 0:00:04]}  Bf3 {[%clk 0:00:16]} 46. a7 {[%clk 0:00:02]}  Kf6 {[%clk 0:00:16]} 47. g4 {[%clk 0:00:03]}  Ke7 {[%clk 0:00:15]} 48. Kg3 {[%clk 0:00:03]}  Ba8 {[%clk 0:00:13]} 49. Kh4 {[%clk 0:00:04]}  Kf6 {[%clk 0:00:12]} 50. Kg3 {[%clk 0:00:03]}  h6 {[%clk 0:00:12]} 51. Kh4 {[%clk 0:00:03]}  Ke6 {[%clk 0:00:09]} 52. Kg3 {[%clk 0:00:03]}  Kd5 {[%clk 0:00:08]} 53. gxf5 {[%clk 0:00:01]}  gxf5 {[%clk 0:00:07]} 54. Kh4 {[%clk 0:00:01]}  Ke4 {[%clk 0:00:08]} 55. Kh5 {[%clk 0:00:02]}  Kxf4 {[%clk 0:00:08]} 56. h4 {[%clk 0:00:02]}  Kg3 {[%clk 0:00:08]} 57. Kxh6 {[%clk 0:00:03]}  Kxh4 {[%clk 0:00:08]} 58. Kg6 {[%clk 0:00:03]}  f4 {[%clk 0:00:08]} 59. Kf6 {[%clk 0:00:04]}  f3 {[%clk 0:00:09]} 60. Ke7 {[%clk 0:00:05]}  f2 {[%clk 0:00:10]} 61. Kd8 {[%clk 0:00:06]}  f1=Q {[%clk 0:00:10]} 62. Kc8 {[%clk 0:00:07]}  Qf3 {[%clk 0:00:10]} 63. Kc7 {[%clk 0:00:06]}  Qb7+ {[%clk 0:00:11]} 64. Kd6 {[%clk 0:00:07]}  Qxa7 {[%clk 0:00:11]} 65. Ke5 {[%clk 0:00:06]}  Qb7 {[%clk 0:00:12]} 66. Kf5 {[%clk 0:00:07]}  Kh5 {[%clk 0:00:12]} 67. Kf4 {[%clk 0:00:07]}  Qe4+ {[%clk 0:00:11]} 68. Kg3 {[%clk 0:00:08]}  Qf3+ {[%clk 0:00:11]} 69. Kh2 {[%clk 0:00:08]}  Qg2# {[%clk 0:00:12]} 0-1


[Site "https://www.chess.com"]

[Event "Titled Tuesday Blitz May 23 Early 2023"]
[White "Smiechu"]
[Black "Rottenwohrer Suarez, Juan"]
[BlackFideId "32068182"]
[WhiteElo "2313"]
[BlackElo "2174"]
[Result "0-1"]
[Round "05"]
[TimeControl "180+2"]
[Date "2023.05.23"]
[WhiteClock "0:01:02"]
[BlackClock "0:00:21"]

1. e4 {[%clk 0:03:00]}  c5 {[%clk 0:03:00]} 2. Nf3 {[%clk 0:03:00]}  g6 {[%clk 0:03:00]} 3. d4 {[%clk 0:02:58]}  cxd4 {[%clk 0:03:01]} 4. Nxd4 {[%clk 0:02:47]}  Nc6 {[%clk 0:03:01]} 5. Nc3 {[%clk 0:02:46]}  Bg7 {[%clk 0:03:01]} 6. Be3 {[%clk 0:02:47]}  Nf6 {[%clk 0:03:01]} 7. Bc4 {[%clk 0:02:47]}  O-O {[%clk 0:03:02]} 8. Bb3 {[%clk 0:02:48]}  d5 {[%clk 0:03:02]} 9. exd5 {[%clk 0:02:43]}  Na5 {[%clk 0:03:02]} 10. Nde2 {[%clk 0:02:39]}  a6 {[%clk 0:03:03]} 11. h3 {[%clk 0:02:38]}  b5 {[%clk 0:03:01]} 12. O-O {[%clk 0:02:34]}  Bb7 {[%clk 0:03:00]} 13. d6 {[%clk 0:02:26]}  exd6 {[%clk 0:02:44]} 14. Nf4 {[%clk 0:02:17]}  Rc8 {[%clk 0:02:39]} 15. Ncd5 {[%clk 0:02:08]}  Nxb3 {[%clk 0:02:36]} 16. axb3 {[%clk 0:02:07]}  Nxd5 {[%clk 0:02:31]} 17. Nxd5 {[%clk 0:02:06]}  Bxb2 {[%clk 0:02:08]} 18. Bd4 {[%clk 0:02:04]}  Bxd4 {[%clk 0:01:57]} 19. Qxd4 {[%clk 0:02:04]}  Bxd5 {[%clk 0:01:57]} 20. Qxd5 {[%clk 0:02:04]}  Rc5 {[%clk 0:01:40]} 21. Qd3 {[%clk 0:02:02]}  Rc6 {[%clk 0:01:34]} 22. Rfe1 {[%clk 0:01:57]}  Qf6 {[%clk 0:01:32]} 23. Qd5 {[%clk 0:01:49]}  Rxc2 {[%clk 0:01:29]} 24. Rf1 {[%clk 0:01:48]}  Rxf2 {[%clk 0:01:27]} 25. Rxf2 {[%clk 0:01:48]}  Qxa1+ {[%clk 0:01:26]} 26. Rf1 {[%clk 0:01:47]}  Qe5 {[%clk 0:01:24]} 27. Qb7 {[%clk 0:01:43]}  a5 {[%clk 0:01:22]} 28. Kh1 {[%clk 0:01:42]}  a4 {[%clk 0:01:06]} 29. bxa4 {[%clk 0:01:42]}  bxa4 {[%clk 0:01:07]} 30. Qa7 {[%clk 0:01:42]}  Qe4 {[%clk 0:01:02]} 31. Rd1 {[%clk 0:01:40]}  d5 {[%clk 0:00:59]} 32. Rd4 {[%clk 0:01:40]}  Qe1+ {[%clk 0:00:57]} 33. Kh2 {[%clk 0:01:40]}  Qe5+ {[%clk 0:00:58]} 34. Kg1 {[%clk 0:01:39]}  Rc8 {[%clk 0:00:54]} 35. Qxa4 {[%clk 0:01:29]}  Rc1+ {[%clk 0:00:53]} 36. Rd1 {[%clk 0:01:29]}  Qe3+ {[%clk 0:00:39]} 37. Kh2 {[%clk 0:01:28]}  Rxd1 {[%clk 0:00:39]} 38. Qxd1 {[%clk 0:01:27]}  d4 {[%clk 0:00:39]} 39. Qa1 {[%clk 0:01:23]}  d3 {[%clk 0:00:33]} 40. Qa8+ {[%clk 0:01:22]}  Kg7 {[%clk 0:00:34]} 41. Qa1+ {[%clk 0:01:22]}  Kh6 {[%clk 0:00:34]} 42. g4 {[%clk 0:01:13]}  d2 {[%clk 0:00:31]} 43. Qa5 {[%clk 0:01:02]}  d1=Q {[%clk 0:00:21]} 0-1


[Site "https://www.chess.com"]